Workbook

Sheet Обоснование НМЦД
A1: Выберите метод
A2: Метод сопоставимых рыночных цен (анализ рынка)
A3: Затратный метод | B3: ОБОСНОВАНИЕ НАЧАЛЬНОЙ (МАКСИМАЛЬНОЙ) ЦЕНЫ ДОГОВОРА на поставку товаров, работ, услуг для АО "РИК Автодор"
A4: Нормативный метод
A6: руб. | B6: Предмет договора: | F6: Запрос котировок в электронной форме на поставку автошин для грузовой техники
A7: евро | B7: Начальная (максимальная) цена договора (лота): | F7: 2574278 | K7: руб.
B8: Метод определения НМЦД: | F8: Метод сопоставимых рыночных цен (анализ рынка)
A9: x | B9: № п/п | C9: Наименование, характеристики закупаемых товаров (работ, услуг) | D9: Ед. изм. | E9: Кол-во | F9: Коммерческое предложение № 1 | H9: Коммерческое предложение № 2 | J9: Коммерческое предложение № 3
A10: x | F10: ФГБУ "Институт мерзлотоведения им. П.И. Мельникова" СО РАН, 677010 РС(Я), г.Якутск, ул.Мерзлотная, д.36, ИНН 1435017643 | H10: ООО "Корунд", адрес: 677000, РС(Я) г.Якутск, ул.Ярославского, 48 оф.1 ИНН 1435186070 | J10: ООО НТЦ "Стройэкспертиза", адрес: 677008, РС(Я), г.Якутск, ул. Петровского, д.38, офис VII-4
A11: x
A12: x | F12: Цена за ед. без НДС (руб.) | G12: Сумма без НДС (руб.) | H12: Цена за ед. без НДС (руб.) | I12: Сумма без НДС (руб.) | J12: Цена за ед. без НДС (руб.) | K12: Сумма без НДС (руб.)
A13: x | B13: 1 | C13: Отбор исполнителя на выполнение обследования технического состояния здания по объекту: «База газового хозяйства Тулагино. Ремонт здания». | D13: шт | E13: 1 | F13: 420000 | G13: =F13*$E$13 -> 420000 | H13: 230074.18 | I13: =H13*$E$13 -> 230074.18 | J13: 560000 | K13: =J13*$E$13 -> 560000
A14: x | B14: 2 | C14: Каждая номенклатура продукции указывается отдельной строкой | F14: 0 | G14: =F14*$E$13 -> 0 | H14: 0 | I14: =H14*$E$13 -> 0 | J14: 0 | K14: =J14*$E$13 -> 0
A15: x | B15: 3 | C15: Каждая номенклатура продукции указывается отдельной строкой | F15: 0 | G15: =F15*$E$13 -> 0 | H15: 0 | I15: =H15*$E$13 -> 0 | J15: 0 | K15: =J15*$E$13 -> 0
A16: x | B16: и т.д. | F16: 0 | G16: 0 | H16: 0 | I16: 0 | J16: 0 | K16: 0
A17: x | B17: Транспортно-экспедиционные затраты (учтено / не учтено): | F17: учтено | H17: учтено | J17: учтено
A18: x | B18: Срок поставки товара (выполнения работ, оказания услуг): | F18: 60 к.д. | H18: 45 к.д. | J18: 90 к.д.
A19: x | B19: ИТОГО без НДС: | F19: =SUM(G13:G16) -> 420000 | H19: =SUM(I13:I16) -> 230074.18 | J19: =SUM(K13:K16) -> 560000
A20: x | B20: НДС-20%: | F20: 0 | H20: 0 | J20: 0
A21: x | B21: ИТОГО с НДС: | F21: =F20+F19 -> 420000 | H21: =H20+H19 -> 230074.18 | J21: =J20+J19 -> 560000
A22: x | B22: Примечание:
A23: x | B23: Приложения: | F23: 1) Коммерческое предложение №1 от 23.03.2021г на 1 л.; 2) Коммерческое предложение №2 от от 23.03.2021г на 1 л.; 3) Коммерческое предложение №3 от от 23.03.2021г на 1 л.;
B24: № п/п | C24: Наименование, характеристики закупаемых товаров (работ, услуг) | D24: Ед. изм. | E24: Кол-во | F24: Коммерческое предложение № 1 | H24: Коммерческое предложение № 2 | J24: Коммерческое предложение № 3
F27: Цена за ед. в том числе НДС (руб.) | G27: Сумма в том числе НДС (руб.) | H27: Цена за ед. в том числе НДС (руб.) | I27: Сумма в том числе НДС (руб.) | J27: Цена за ед. в том числе НДС (руб.) | K27: Сумма в том числе НДС (руб.)
B28: 1 | C28: Автошина 315/80R22.5 ANNAITE 700 б/к | D28: шт | E28: 70 | F28: 20974 | G28: =E28*F28 -> 1468180 | H28: 24759 | I28: =E28*H28 -> 1733130 | J28: 62500 | K28: =E28*J28 -> 4375000
B29: 2 | C29: Автошина 315/70R22.5 ANNAITE 785 б/к | D29: шт | E29: 4 | F29: 21246 | G29: =E29*F29 -> 84984 | H29: 48735 | I29: =E29*H29 -> 194940 | J29: 55600 | K29: =E29*J29 -> 222400
B30: 3 | C30: Автошина 385/65R22.5 ANNAITE 700 б/к | D30: шт | E30: 24 | F30: 24879 | G30: 597096 | H30: 32986 | I30: 791664 | J30: 60400 | K30: 1449600
B31: 4 | C31: Автошина 10.00R20 ANNAITE 700 | D31: шт | E31: 10 | F31: 20611 | G31: 206110 | H31: 24521 | I31: 245210 | J31: 27300 | K31: 273000
B32: 5 | C32: 11.00 R 22,5 ANNAITE 300 | D32: шт | E32: 12 | F32: 18159 | G32: 217908 | H32: 24674 | I32: 296088 | J32: 30000 | K32: 360000
B33: ИТОГО с НДС: | F33: =G28+G29+G30+G31+G32 -> 2574278 | H33: =I28+I29+I30+I31+I32 -> 3261032 | J33: =K28+K29+K30+K31+K32 -> 6680000
